[Event "Titled Tuesday Blitz August 17 2021"]
[White "Gupta, Abhijeet"]
[Black "Yeletsky, Ivan"]
[WhiteFideId "5010608"]
[BlackFideId "24180327"]
[WhiteElo "2549"]
[BlackElo "2344"]
[Result "0-1"]
[Round "09"]
[TimeControl "180+1"]
[Date "2021.08.17"]
[WhiteClock "0:00:44"]
[BlackClock "0:01:43"]

1. Nf3 {[%clk 0:02:59]}  c5 {[%clk 0:02:59]} 2. c4 {[%clk 0:02:59]}  Nf6 {[%clk 0:02:57]} 3. Nc3 {[%clk 0:02:58]}  d5 {[%clk 0:02:55]} 4. cxd5 {[%clk 0:02:58]}  Nxd5 {[%clk 0:02:56]} 5. e3 {[%clk 0:02:58]}  e6 {[%clk 0:02:48]} 6. Bb5+ {[%clk 0:02:55]}  Bd7 {[%clk 0:02:47]} 7. Bxd7+ {[%clk 0:02:51]}  Nxd7 {[%clk 0:02:44]} 8. Nxd5 {[%clk 0:02:50]}  exd5 {[%clk 0:02:44]} 9. O-O {[%clk 0:02:49]}  Be7 {[%clk 0:02:40]} 10. b3 {[%clk 0:02:41]}  O-O {[%clk 0:02:39]} 11. Bb2 {[%clk 0:02:41]}  Rc8 {[%clk 0:02:36]} 12. d4 {[%clk 0:02:40]}  c4 {[%clk 0:02:33]} 13. bxc4 {[%clk 0:02:41]}  dxc4 {[%clk 0:02:31]} 14. Rc1 {[%clk 0:02:39]}  b5 {[%clk 0:02:30]} 15. Qe2 {[%clk 0:02:39]}  Nb6 {[%clk 0:02:28]} 16. e4 {[%clk 0:02:38]}  b4 {[%clk 0:02:26]} 17. Rc2 {[%clk 0:02:31]}  a5 {[%clk 0:02:21]} 18. d5 {[%clk 0:02:31]}  c3 {[%clk 0:02:21]} 19. Bc1 {[%clk 0:02:31]}  Bc5 {[%clk 0:02:13]} 20. Ne5 {[%clk 0:02:15]}  Qe8 {[%clk 0:02:06]} 21. Nd3 {[%clk 0:02:07]}  Bd4 {[%clk 0:02:05]} 22. h4 {[%clk 0:01:51]}  Qe7 {[%clk 0:01:56]} 23. Bg5 {[%clk 0:01:48]}  f6 {[%clk 0:01:56]} 24. Be3 {[%clk 0:01:47]}  Qxe4 {[%clk 0:01:52]} 25. d6 {[%clk 0:01:02]}  Bxe3 {[%clk 0:01:49]} 26. fxe3 {[%clk 0:01:02]}  Nc4 {[%clk 0:01:42]} 27. d7 {[%clk 0:00:57]}  Rcd8 {[%clk 0:01:43]} 28. Nc5 {[%clk 0:00:57]}  Qxe3+ {[%clk 0:01:43]} 29. Kh2 {[%clk 0:00:49]}  Qxc5 {[%clk 0:01:43]} 30. Qe6+ {[%clk 0:00:46]}  Kh8 {[%clk 0:01:43]} 31. Rg1 {[%clk 0:00:44]}  Qe5+ {[%clk 0:01:43]} 0-1


[Site "https://www.chess.com"]

[Event "Titled Tuesday Blitz August 17 2021"]
[White "Holt, Conrad"]
[Black "Yoo, Christopher Woojin"]
[WhiteFideId "2034387"]
[BlackFideId "30909694"]
[WhiteElo "2586"]
[BlackElo "2105"]
[Result "0-1"]
[Round "09"]
[TimeControl "180+1"]
[Date "2021.08.17"]
[WhiteClock "0:00:01"]
[BlackClock "0:00:02"]

1. d4 {[%clk 0:03:00]}  Nf6 {[%clk 0:02:51]} 2. c4 {[%clk 0:03:00]}  e6 {[%clk 0:02:52]} 3. Nc3 {[%clk 0:03:00]}  d5 {[%clk 0:02:52]} 4. cxd5 {[%clk 0:03:00]}  exd5 {[%clk 0:02:52]} 5. Bg5 {[%clk 0:03:00]}  Be7 {[%clk 0:02:41]} 6. e3 {[%clk 0:02:59]}  O-O {[%clk 0:02:40]} 7. Bd3 {[%clk 0:02:59]}  c6 {[%clk 0:02:39]} 8. Qc2 {[%clk 0:02:56]}  h6 {[%clk 0:02:38]} 9. Bh4 {[%clk 0:02:56]}  Nbd7 {[%clk 0:02:37]} 10. Nge2 {[%clk 0:02:53]}  Re8 {[%clk 0:02:37]} 11. O-O {[%clk 0:02:52]}  Ne4 {[%clk 0:02:31]} 12. Bxe7 {[%clk 0:02:49]}  Qxe7 {[%clk 0:02:31]} 13. Rfe1 {[%clk 0:02:32]}  Ndf6 {[%clk 0:02:30]} 14. f3 {[%clk 0:02:29]}  Nxc3 {[%clk 0:02:19]} 15. Nxc3 {[%clk 0:02:29]}  c5 {[%clk 0:01:57]} 16. dxc5 {[%clk 0:02:27]}  Qxc5 {[%clk 0:01:57]} 17. Nb5 {[%clk 0:02:26]}  Qxc2 {[%clk 0:01:46]} 18. Bxc2 {[%clk 0:02:27]}  Re7 {[%clk 0:01:33]} 19. Rac1 {[%clk 0:02:24]}  Bd7 {[%clk 0:01:31]} 20. Nd4 {[%clk 0:02:21]}  Rc8 {[%clk 0:01:31]} 21. Kf2 {[%clk 0:02:16]}  Ree8 {[%clk 0:01:31]} 22. Bf5 {[%clk 0:02:13]}  g6 {[%clk 0:01:20]} 23. Bxd7 {[%clk 0:02:04]}  Nxd7 {[%clk 0:01:21]} 24. Nb5 {[%clk 0:02:04]}  Ne5 {[%clk 0:01:18]} 25. Rcd1 {[%clk 0:01:37]}  Rc2+ {[%clk 0:01:08]} 26. Re2 {[%clk 0:01:34]}  Rxe2+ {[%clk 0:01:07]} 27. Kxe2 {[%clk 0:01:34]}  Nc4 {[%clk 0:01:07]} 28. Rd3 {[%clk 0:01:23]}  Nxb2 {[%clk 0:00:41]} 29. Rxd5 {[%clk 0:01:22]}  Nc4 {[%clk 0:00:41]} 30. e4 {[%clk 0:01:19]}  a6 {[%clk 0:00:36]} 31. Nc3 {[%clk 0:00:57]}  Rc8 {[%clk 0:00:30]} 32. Rd4 {[%clk 0:00:20]}  Ne5 {[%clk 0:00:22]} 33. Nd5 {[%clk 0:00:17]}  Kf8 {[%clk 0:00:21]} 34. Kd2 {[%clk 0:00:10]}  b5 {[%clk 0:00:19]} 35. f4 {[%clk 0:00:09]}  Nc4+ {[%clk 0:00:19]} 36. Kd3 {[%clk 0:00:09]}  Nb2+ {[%clk 0:00:16]} 37. Kd2 {[%clk 0:00:10]}  Nc4+ {[%clk 0:00:16]} 38. Ke2 {[%clk 0:00:09]}  Nd6 {[%clk 0:00:15]} 39. e5 {[%clk 0:00:07]}  Nf5 {[%clk 0:00:11]} 40. Rd2 {[%clk 0:00:07]}  h5 {[%clk 0:00:11]} 41. Nf6 {[%clk 0:00:07]}  Ke7 {[%clk 0:00:09]} 42. Ne4 {[%clk 0:00:06]}  Rc4 {[%clk 0:00:08]} 43. Kf3 {[%clk 0:00:06]}  Ra4 {[%clk 0:00:07]} 44. Nc5 {[%clk 0:00:05]}  Ra3+ {[%clk 0:00:07]} 45. Kf2 {[%clk 0:00:05]}  Ne3 {[%clk 0:00:06]} 46. h3 {[%clk 0:00:03]}  Nc4 {[%clk 0:00:06]} 47. Rd7+ {[%clk 0:00:03]}  Ke8 {[%clk 0:00:06]} 48. Ra7 {[%clk 0:00:03]}  Rxa2+ {[%clk 0:00:07]} 49. Kf3 {[%clk 0:00:03]}  Nd2+ {[%clk 0:00:03]} 50. Ke3 {[%clk 0:00:03]}  Nc4+ {[%clk 0:00:03]} 51. Kf3 {[%clk 0:00:03]}  b4 {[%clk 0:00:03]} 52. Nxa6 {[%clk 0:00:01]}  b3 {[%clk 0:00:02]} 0-1


[Site "https://www.chess.com"]

[Event "Titled Tuesday Blitz August 17 2021"]
[White "Ibarra Jerez, Jose Carlos"]
[Black "Khanin, Semen"]
[WhiteFideId "2226332"]
[BlackFideId "4111990"]
[WhiteElo "2602"]
[BlackElo "2521"]
[Result "0-1"]
[Round "09"]
[TimeControl "180+1"]
[Date "2021.08.17"]
[WhiteClock "0:00:03"]
[BlackClock "0:00:17"]

1. d4 {[%clk 0:03:00]}  Nf6 {[%clk 0:02:59]} 2. Bf4 {[%clk 0:03:00]}  d5 {[%clk 0:02:56]} 3. e3 {[%clk 0:03:00]}  e6 {[%clk 0:02:55]} 4. Nd2 {[%clk 0:03:00]}  c5 {[%clk 0:02:56]} 5. c3 {[%clk 0:02:55]}  Nc6 {[%clk 0:02:56]} 6. Ngf3 {[%clk 0:02:53]}  Be7 {[%clk 0:02:57]} 7. Bd3 {[%clk 0:02:50]}  Nh5 {[%clk 0:02:57]} 8. Be5 {[%clk 0:02:46]}  Nxe5 {[%clk 0:02:56]} 9. dxe5 {[%clk 0:02:45]}  g6 {[%clk 0:02:55]} 10. g4 {[%clk 0:02:29]}  Ng7 {[%clk 0:02:55]} 11. Qa4+ {[%clk 0:02:30]}  Bd7 {[%clk 0:02:53]} 12. Qf4 {[%clk 0:02:31]}  Bc6 {[%clk 0:02:42]} 13. e4 {[%clk 0:02:07]}  h5 {[%clk 0:02:31]} 14. g5 {[%clk 0:02:01]}  h4 {[%clk 0:02:30]} 15. O-O-O {[%clk 0:01:53]}  Qa5 {[%clk 0:02:24]} 16. Kb1 {[%clk 0:01:52]}  h3 {[%clk 0:02:10]} 17. Rhe1 {[%clk 0:01:38]}  Nh5 {[%clk 0:02:05]} 18. Qg4 {[%clk 0:01:35]}  O-O-O {[%clk 0:02:05]} 19. exd5 {[%clk 0:01:33]}  Bxd5 {[%clk 0:02:05]} 20. Bc4 {[%clk 0:01:31]}  Qa4 {[%clk 0:01:39]} 21. b3 {[%clk 0:01:25]}  Qc6 {[%clk 0:01:39]} 22. Bxd5 {[%clk 0:01:14]}  Rxd5 {[%clk 0:01:39]} 23. c4 {[%clk 0:00:56]}  Rd3 {[%clk 0:01:35]} 24. Ne4 {[%clk 0:00:51]}  Rd7 {[%clk 0:01:07]} 25. Nd6+ {[%clk 0:00:40]}  Bxd6 {[%clk 0:01:02]} 26. exd6 {[%clk 0:00:41]}  Rxd6 {[%clk 0:01:02]} 27. Ne5 {[%clk 0:00:37]}  Rxd1+ {[%clk 0:00:59]} 28. Qxd1 {[%clk 0:00:34]}  Qc7 {[%clk 0:00:57]} 29. Qf3 {[%clk 0:00:32]}  Rd8 {[%clk 0:00:52]} 30. Qxf7 {[%clk 0:00:32]}  Qxf7 {[%clk 0:00:51]} 31. Nxf7 {[%clk 0:00:32]}  Rd2 {[%clk 0:00:51]} 32. Rf1 {[%clk 0:00:23]}  Re2 {[%clk 0:00:49]} 33. Nd6+ {[%clk 0:00:15]}  Kb8 {[%clk 0:00:42]} 34. Nb5 {[%clk 0:00:15]}  Nf4 {[%clk 0:00:41]} 35. Nc3 {[%clk 0:00:13]}  Re5 {[%clk 0:00:41]} 36. Kc2 {[%clk 0:00:12]}  Rxg5 {[%clk 0:00:40]} 37. Ne4 {[%clk 0:00:06]}  Rg2 {[%clk 0:00:40]} 38. Rh1 {[%clk 0:00:07]}  b6 {[%clk 0:00:33]} 39. Kd2 {[%clk 0:00:06]}  Kc7 {[%clk 0:00:32]} 40. Ke3 {[%clk 0:00:07]}  e5 {[%clk 0:00:32]} 41. Kf3 {[%clk 0:00:07]}  Ne6 {[%clk 0:00:31]} 42. Nc3 {[%clk 0:00:07]}  Nd4+ {[%clk 0:00:31]} 43. Ke3 {[%clk 0:00:07]}  Kd6 {[%clk 0:00:29]} 44. Ne4+ {[%clk 0:00:07]}  Ke6 {[%clk 0:00:29]} 45. Nd2 {[%clk 0:00:07]}  Kf5 {[%clk 0:00:26]} 46. Ne4 {[%clk 0:00:06]}  Ke6 {[%clk 0:00:18]} 47. Nd2 {[%clk 0:00:06]}  g5 {[%clk 0:00:18]} 48. Ne4 {[%clk 0:00:06]}  g4 {[%clk 0:00:19]} 49. Nd2 {[%clk 0:00:04]}  Nf5+ {[%clk 0:00:19]} 50. Kd3 {[%clk 0:00:03]}  Nd6 {[%clk 0:00:19]} 51. Ke2 {[%clk 0:00:02]}  Kf5 {[%clk 0:00:19]} 52. Nf1 {[%clk 0:00:03]}  Kf4 {[%clk 0:00:18]} 53. Ne3 {[%clk 0:00:03]}  Nf5 {[%clk 0:00:18]} 54. Nxg2+ {[%clk 0:00:03]}  hxg2 {[%clk 0:00:18]} 55. Rg1 {[%clk 0:00:04]}  Nh4 {[%clk 0:00:19]} 56. a3 {[%clk 0:00:04]}  a5 {[%clk 0:00:18]} 57. a4 {[%clk 0:00:04]}  e4 {[%clk 0:00:18]} 58. Kd1 {[%clk 0:00:04]}  Kf3 {[%clk 0:00:18]} 59. Ke1 {[%clk 0:00:04]}  Ng6 {[%clk 0:00:18]} 60. Kd2 {[%clk 0:00:02]}  Nf4 {[%clk 0:00:18]} 61. Ke1 {[%clk 0:00:02]}  Nh3 {[%clk 0:00:18]} 62. Kd2 {[%clk 0:00:03]}  Nxg1 {[%clk 0:00:17]} 0-1


[Site "https://www.chess.com"]

[Event "Titled Tuesday Blitz August 17 2021"]
[White "Ibrahimli, Murad"]
[Black "Baches Garcia, Guillermo"]
[WhiteFideId "13410229"]
[BlackFideId "2209764"]
[WhiteElo "2109"]
[BlackElo "2480"]
[Result "0-1"]
[Round "09"]
[TimeControl "180+1"]
[Date "2021.08.17"]
[WhiteClock "0:02:38"]
[BlackClock "0:03:01"]

1. e4 {[%clk 0:03:00]}  c5 {[%clk 0:03:00]} 2. Nf3 {[%clk 0:02:58]}  d6 {[%clk 0:03:00]} 3. d4 {[%clk 0:02:57]}  cxd4 {[%clk 0:03:01]} 4. Nxd4 {[%clk 0:02:57]}  Nf6 {[%clk 0:03:01]} 5. Nc3 {[%clk 0:02:55]}  Nc6 {[%clk 0:03:02]} 6. Bg5 {[%clk 0:02:51]}  e6 {[%clk 0:03:02]} 7. Qd2 {[%clk 0:02:49]}  h6 {[%clk 0:03:03]} 8. Bh4 {[%clk 0:02:44]}  Nxe4 {[%clk 0:03:02]} 9. Nxe4 {[%clk 0:02:38]}  Qxh4 {[%clk 0:03:01]} 10. Nxc6 {[%clk 0:02:38]}  Qxe4+ {[%clk 0:03:01]} 0-1


[Site "https://www.chess.com"]

[Event "Titled Tuesday Blitz August 17 2021"]
[White "Idani, Pouya"]
[Black "Tregubov, Pavel V."]
[WhiteFideId "12510130"]
[BlackFideId "4115341"]
[WhiteElo "2610"]
[BlackElo "2423"]
[Result "0-1"]
[Round "09"]
[TimeControl "180+1"]
[Date "2021.08.17"]
[WhiteClock "0:00:15"]
[BlackClock "0:01:15"]

1. e4 {[%clk 0:03:00]}  c5 {[%clk 0:02:56]} 2. Nf3 {[%clk 0:02:59]}  e6 {[%clk 0:02:56]} 3. c3 {[%clk 0:02:59]}  d5 {[%clk 0:02:55]} 4. exd5 {[%clk 0:02:59]}  exd5 {[%clk 0:02:56]} 5. d4 {[%clk 0:03:00]}  Nc6 {[%clk 0:02:55]} 6. Bb5 {[%clk 0:02:59]}  Bd6 {[%clk 0:02:56]} 7. O-O {[%clk 0:02:58]}  Ne7 {[%clk 0:02:56]} 8. dxc5 {[%clk 0:02:59]}  Bxc5 {[%clk 0:02:55]} 9. Nbd2 {[%clk 0:02:59]}  O-O {[%clk 0:02:56]} 10. Nb3 {[%clk 0:03:00]}  Bd6 {[%clk 0:02:56]} 11. h3 {[%clk 0:03:00]}  Nf5 {[%clk 0:02:52]} 12. Re1 {[%clk 0:02:55]}  h6 {[%clk 0:02:46]} 13. Be3 {[%clk 0:02:46]}  Nxe3 {[%clk 0:02:30]} 14. Rxe3 {[%clk 0:02:46]}  Be6 {[%clk 0:02:30]} 15. Nfd4 {[%clk 0:02:41]}  Nxd4 {[%clk 0:02:15]} 16. Nxd4 {[%clk 0:02:40]}  Qf6 {[%clk 0:02:15]} 17. Qe2 {[%clk 0:02:21]}  a6 {[%clk 0:02:15]} 18. Bd3 {[%clk 0:02:19]}  Bd7 {[%clk 0:02:08]} 19. Re1 {[%clk 0:02:15]}  Bc5 {[%clk 0:02:05]} 20. Rf3 {[%clk 0:02:10]}  Qb6 {[%clk 0:02:02]} 21. Nb3 {[%clk 0:01:37]}  Rae8 {[%clk 0:02:00]} 22. Qd1 {[%clk 0:01:34]}  Rxe1+ {[%clk 0:02:00]} 23. Qxe1 {[%clk 0:01:35]}  Re8 {[%clk 0:02:00]} 24. Qd2 {[%clk 0:01:29]}  Bd6 {[%clk 0:01:56]} 25. Nd4 {[%clk 0:01:24]}  Bc5 {[%clk 0:01:52]} 26. Nf5 {[%clk 0:01:20]}  Qe6 {[%clk 0:01:45]} 27. Ne3 {[%clk 0:00:40]}  Bc6 {[%clk 0:01:38]} 28. Bf5 {[%clk 0:00:33]}  Qe5 {[%clk 0:01:37]} 29. Nc2 {[%clk 0:00:21]}  Qe2 {[%clk 0:01:30]} 30. Qxe2 {[%clk 0:00:17]}  Rxe2 {[%clk 0:01:30]} 31. Bd3 {[%clk 0:00:17]}  Rd2 {[%clk 0:01:28]} 32. b4 {[%clk 0:00:16]}  d4 {[%clk 0:01:16]} 33. Rg3 {[%clk 0:00:15]}  Bd6 {[%clk 0:01:15]} 0-1


[Site "https://www.chess.com"]

[Event "Titled Tuesday Blitz August 17 2021"]
[White "Iskusnyh, Sergei"]
[Black "Mirzoev, Azer"]
[WhiteFideId "4120027"]
[BlackFideId "13400304"]
[WhiteElo "2492"]
[BlackElo "2525"]
[Result "1/2-1/2"]
[Round "09"]
[TimeControl "180+1"]
[Date "2021.08.17"]
[WhiteClock "0:00:07"]
[BlackClock "0:00:08"]

1. d4 {[%clk 0:03:00]}  d5 {[%clk 0:02:59]} 2. c4 {[%clk 0:03:00]}  c6 {[%clk 0:03:00]} 3. Nf3 {[%clk 0:02:59]}  Nf6 {[%clk 0:03:00]} 4. e3 {[%clk 0:02:57]}  Bf5 {[%clk 0:02:58]} 5. Nc3 {[%clk 0:02:56]}  e6 {[%clk 0:02:57]} 6. Nh4 {[%clk 0:02:56]}  Be4 {[%clk 0:02:56]} 7. f3 {[%clk 0:02:56]}  Bg6 {[%clk 0:02:56]} 8. Bd2 {[%clk 0:02:56]}  Nbd7 {[%clk 0:02:56]} 9. Nxg6 {[%clk 0:02:55]}  hxg6 {[%clk 0:02:56]} 10. Qc2 {[%clk 0:02:55]}  a6 {[%clk 0:02:49]} 11. O-O-O {[%clk 0:02:48]}  Qc7 {[%clk 0:02:44]} 12. c5 {[%clk 0:02:44]}  Rxh2 {[%clk 0:02:42]} 13. Rxh2 {[%clk 0:02:36]}  Qxh2 {[%clk 0:02:42]} 14. Kb1 {[%clk 0:02:37]}  g5 {[%clk 0:02:20]} 15. e4 {[%clk 0:02:20]}  g4 {[%clk 0:02:19]} 16. exd5 {[%clk 0:02:17]}  cxd5 {[%clk 0:02:05]} 17. Qa4 {[%clk 0:02:05]}  gxf3 {[%clk 0:02:05]} 18. gxf3 {[%clk 0:02:04]}  Rc8 {[%clk 0:02:01]} 19. Ne2 {[%clk 0:01:28]}  Qc7 {[%clk 0:01:48]} 20. Nf4 {[%clk 0:01:22]}  Qc6 {[%clk 0:01:33]} 21. Qb3 {[%clk 0:01:21]}  g6 {[%clk 0:01:23]} 22. Re1 {[%clk 0:01:17]}  Bg7 {[%clk 0:01:15]} 23. Bd3 {[%clk 0:01:14]}  g5 {[%clk 0:00:58]} 24. Ne2 {[%clk 0:00:59]}  g4 {[%clk 0:00:58]} 25. fxg4 {[%clk 0:00:55]}  Nxg4 {[%clk 0:00:52]} 26. Rg1 {[%clk 0:00:48]}  Ndf6 {[%clk 0:00:48]} 27. Nf4 {[%clk 0:00:43]}  Bh6 {[%clk 0:00:42]} 28. Be2 {[%clk 0:00:41]}  Ne4 {[%clk 0:00:37]} 29. Bc1 {[%clk 0:00:37]}  Ngf6 {[%clk 0:00:36]} 30. Qh3 {[%clk 0:00:34]}  Bxf4 {[%clk 0:00:27]} 31. Bxf4 {[%clk 0:00:34]}  Ke7 {[%clk 0:00:25]} 32. Bd6+ {[%clk 0:00:32]}  Nxd6 {[%clk 0:00:16]} 33. cxd6+ {[%clk 0:00:32]}  Kxd6 {[%clk 0:00:16]} 34. Qh2+ {[%clk 0:00:27]}  Kd7 {[%clk 0:00:14]} 35. Qf4 {[%clk 0:00:27]}  Qc2+ {[%clk 0:00:13]} 36. Ka1 {[%clk 0:00:26]}  Qxe2 {[%clk 0:00:13]} 37. Qxf6 {[%clk 0:00:26]}  Rf8 {[%clk 0:00:13]} 38. Rc1 {[%clk 0:00:22]}  Qe3 {[%clk 0:00:11]} 39. Rf1 {[%clk 0:00:14]}  Qd2 {[%clk 0:00:09]} 40. a3 {[%clk 0:00:13]}  a5 {[%clk 0:00:09]} 41. Qg7 {[%clk 0:00:11]}  Ke7 {[%clk 0:00:09]} 42. Qf6+ {[%clk 0:00:11]}  Kd7 {[%clk 0:00:08]} 43. Qg7 {[%clk 0:00:11]}  Ke7 {[%clk 0:00:09]} 44. Qe5 {[%clk 0:00:11]}  Kd7 {[%clk 0:00:08]} 45. Qg7 {[%clk 0:00:07]} 1/2-1/2


[Site "https://www.chess.com"]

[Event "Titled Tuesday Blitz August 17 2021"]
[White "Ivanov, Oleg"]
[Black "De Silva, L M S T"]
[WhiteFideId "4103114"]
[BlackFideId "9953698"]
[WhiteElo "2699"]
[BlackElo "1621"]
[Result "1/2-1/2"]
[Round "09"]
[TimeControl "180+1"]
[Date "2021.08.17"]
[WhiteClock "0:00:07"]
[BlackClock "0:00:40"]

1. e4 {[%clk 0:02:59]}  e5 {[%clk 0:03:00]} 2. Nf3 {[%clk 0:02:58]}  Nc6 {[%clk 0:03:00]} 3. d4 {[%clk 0:02:58]}  exd4 {[%clk 0:03:00]} 4. Bc4 {[%clk 0:02:59]}  Nf6 {[%clk 0:03:00]} 5. e5 {[%clk 0:02:58]}  d5 {[%clk 0:03:01]} 6. Bb5 {[%clk 0:02:59]}  Ne4 {[%clk 0:03:01]} 7. Nxd4 {[%clk 0:02:59]}  Bd7 {[%clk 0:03:01]} 8. Bxc6 {[%clk 0:02:59]}  bxc6 {[%clk 0:03:02]} 9. O-O {[%clk 0:02:59]}  Bc5 {[%clk 0:03:02]} 10. f3 {[%clk 0:02:58]}  Ng5 {[%clk 0:03:02]} 11. Be3 {[%clk 0:02:59]}  Bb6 {[%clk 0:03:03]} 12. f4 {[%clk 0:02:59]}  Ne4 {[%clk 0:03:04]} 13. Nd2 {[%clk 0:02:59]}  Nxd2 {[%clk 0:03:00]} 14. Qxd2 {[%clk 0:03:00]}  O-O {[%clk 0:03:01]} 15. Nb3 {[%clk 0:02:57]}  Bf5 {[%clk 0:02:59]} 16. Bc5 {[%clk 0:02:52]}  Re8 {[%clk 0:02:58]} 17. Qc3 {[%clk 0:02:43]}  Qd7 {[%clk 0:02:44]} 18. a4 {[%clk 0:02:28]}  a5 {[%clk 0:02:41]} 19. h3 {[%clk 0:02:27]}  Re6 {[%clk 0:02:28]} 20. Kh2 {[%clk 0:02:00]}  Rg6 {[%clk 0:02:21]} 21. Nd4 {[%clk 0:01:03]}  h5 {[%clk 0:02:15]} 22. Bxb6 {[%clk 0:00:53]}  cxb6 {[%clk 0:02:14]} 23. Nxf5 {[%clk 0:00:53]}  Qxf5 {[%clk 0:02:14]} 24. Qd3 {[%clk 0:00:54]}  Qxd3 {[%clk 0:02:07]} 25. cxd3 {[%clk 0:00:54]}  d4 {[%clk 0:01:53]} 26. f5 {[%clk 0:00:50]}  Rh6 {[%clk 0:01:50]} 27. Rf4 {[%clk 0:00:47]}  c5 {[%clk 0:01:51]} 28. g3 {[%clk 0:00:44]}  Re8 {[%clk 0:01:47]} 29. Re1 {[%clk 0:00:43]}  Rc6 {[%clk 0:01:45]} 30. b3 {[%clk 0:00:41]}  Kf8 {[%clk 0:01:42]} 31. Kg2 {[%clk 0:00:35]}  b5 {[%clk 0:01:41]} 32. Rc1 {[%clk 0:00:29]}  bxa4 {[%clk 0:01:38]} 33. bxa4 {[%clk 0:00:26]}  Rxe5 {[%clk 0:01:38]} 34. Rxd4 {[%clk 0:00:25]}  Rxf5 {[%clk 0:01:38]} 35. Rdc4 {[%clk 0:00:24]}  Re6 {[%clk 0:01:32]} 36. R1c2 {[%clk 0:00:17]}  Ree5 {[%clk 0:01:29]} 37. d4 {[%clk 0:00:17]}  cxd4 {[%clk 0:01:29]} 38. Rxd4 {[%clk 0:00:17]}  g6 {[%clk 0:01:28]} 39. g4 {[%clk 0:00:17]}  hxg4 {[%clk 0:01:27]} 40. hxg4 {[%clk 0:00:17]}  Rf6 {[%clk 0:01:28]} 41. Rcd2 {[%clk 0:00:15]}  Kg7 {[%clk 0:01:28]} 42. Kg3 {[%clk 0:00:14]}  Re3+ {[%clk 0:01:28]} 43. Kg2 {[%clk 0:00:14]}  Rff3 {[%clk 0:01:28]} 44. Rf2 {[%clk 0:00:14]}  Rxf2+ {[%clk 0:01:26]} 45. Kxf2 {[%clk 0:00:14]}  Ra3 {[%clk 0:01:27]} 46. g5 {[%clk 0:00:13]}  Kf8 {[%clk 0:01:23]} 47. Re4 {[%clk 0:00:12]}  Kg7 {[%clk 0:00:56]} 48. Rc4 {[%clk 0:00:12]}  f5 {[%clk 0:00:52]} 49. Rc7+ {[%clk 0:00:12]}  Kf8 {[%clk 0:00:52]} 50. Rc6 {[%clk 0:00:12]}  Rxa4 {[%clk 0:00:52]} 51. Rxg6 {[%clk 0:00:11]}  f4 {[%clk 0:00:50]} 52. Kf3 {[%clk 0:00:11]}  Kf7 {[%clk 0:00:45]} 53. Rf6+ {[%clk 0:00:09]}  Kg7 {[%clk 0:00:45]} 54. Ra6 {[%clk 0:00:08]}  Kf7 {[%clk 0:00:40]} 55. Kg4 {[%clk 0:00:07]}  f3+ {[%clk 0:00:39]} 56. Kxf3 {[%clk 0:00:07]}  Kg7 {[%clk 0:00:40]} 57. Ke3 {[%clk 0:00:07]} 1/2-1/2


[Site "https://www.chess.com"]

[Event "Titled Tuesday Blitz August 17 2021"]
[White "Karttunen, Mika"]
[Black "Damjanovic, Vladimir"]
[WhiteFideId "502081"]
[BlackFideId "903795"]
[WhiteElo "2343"]
[BlackElo "2374"]
[Result "0-1"]
[Round "09"]
[TimeControl "180+1"]
[Date "2021.08.17"]
[WhiteClock "0:00:05"]
[BlackClock "0:00:05"]

1. e4 {[%clk 0:03:00]}  c5 {[%clk 0:02:58]} 2. Nf3 {[%clk 0:03:00]}  d6 {[%clk 0:02:57]} 3. d4 {[%clk 0:02:59]}  cxd4 {[%clk 0:02:58]} 4. Nxd4 {[%clk 0:02:59]}  Nf6 {[%clk 0:02:59]} 5. Nc3 {[%clk 0:02:59]}  a6 {[%clk 0:02:59]} 6. Be2 {[%clk 0:02:54]}  e5 {[%clk 0:02:59]} 7. Nb3 {[%clk 0:02:53]}  Be7 {[%clk 0:03:00]} 8. Be3 {[%clk 0:02:48]}  Be6 {[%clk 0:02:59]} 9. a4 {[%clk 0:02:41]}  Nc6 {[%clk 0:02:53]} 10. Nd5 {[%clk 0:01:44]}  Bxd5 {[%clk 0:02:53]} 11. exd5 {[%clk 0:01:44]}  Nb4 {[%clk 0:02:53]} 12. c4 {[%clk 0:01:37]}  a5 {[%clk 0:02:34]} 13. O-O {[%clk 0:01:31]}  b6 {[%clk 0:02:32]} 14. f4 {[%clk 0:01:24]}  Nd7 {[%clk 0:02:21]} 15. fxe5 {[%clk 0:01:22]}  Nxe5 {[%clk 0:02:22]} 16. Nd4 {[%clk 0:01:21]}  Bg5 {[%clk 0:02:06]} 17. Bf2 {[%clk 0:01:14]}  O-O {[%clk 0:02:02]} 18. Nb5 {[%clk 0:01:06]}  g6 {[%clk 0:01:51]} 19. Ra3 {[%clk 0:01:01]}  Na6 {[%clk 0:01:44]} 20. Rh3 {[%clk 0:00:59]}  Nc5 {[%clk 0:01:41]} 21. b3 {[%clk 0:00:59]}  Qd7 {[%clk 0:01:37]} 22. Bd4 {[%clk 0:00:57]}  Rae8 {[%clk 0:01:35]} 23. Kh1 {[%clk 0:00:57]}  Re7 {[%clk 0:01:29]} 24. Rg3 {[%clk 0:00:48]}  Bh6 {[%clk 0:01:27]} 25. Bxc5 {[%clk 0:00:36]}  bxc5 {[%clk 0:01:26]} 26. Rf6 {[%clk 0:00:35]}  Bg7 {[%clk 0:00:51]} 27. Rxd6 {[%clk 0:00:35]}  Qf5 {[%clk 0:00:51]} 28. Bf1 {[%clk 0:00:25]}  h5 {[%clk 0:00:48]} 29. h3 {[%clk 0:00:19]}  Qf4 {[%clk 0:00:42]} 30. Rc3 {[%clk 0:00:18]}  Nd7 {[%clk 0:00:32]} 31. Rf3 {[%clk 0:00:17]}  Qg5 {[%clk 0:00:27]} 32. Rxd7 {[%clk 0:00:13]}  Rxd7 {[%clk 0:00:27]} 33. d6 {[%clk 0:00:14]}  Rfd8 {[%clk 0:00:17]} 34. Qd5 {[%clk 0:00:14]}  Qxd5 {[%clk 0:00:08]} 35. cxd5 {[%clk 0:00:14]}  Be5 {[%clk 0:00:09]} 36. Bc4 {[%clk 0:00:14]}  Bxd6 {[%clk 0:00:09]} 37. Rf6 {[%clk 0:00:14]}  Kg7 {[%clk 0:00:09]} 38. Rf1 {[%clk 0:00:13]}  Be5 {[%clk 0:00:07]} 39. g4 {[%clk 0:00:12]}  hxg4 {[%clk 0:00:06]} 40. hxg4 {[%clk 0:00:13]}  Rh8+ {[%clk 0:00:07]} 41. Kg2 {[%clk 0:00:14]}  Rh2+ {[%clk 0:00:08]} 42. Kf3 {[%clk 0:00:14]}  f6 {[%clk 0:00:07]} 43. Ke4 {[%clk 0:00:13]}  Re7 {[%clk 0:00:07]} 44. Kf3 {[%clk 0:00:11]}  Rd7 {[%clk 0:00:04]} 45. Rd1 {[%clk 0:00:10]}  Rh3+ {[%clk 0:00:04]} 46. Kg2 {[%clk 0:00:08]}  Rg3+ {[%clk 0:00:05]} 47. Kf2 {[%clk 0:00:09]}  Rxg4 {[%clk 0:00:05]} 48. d6 {[%clk 0:00:09]}  Rf4+ {[%clk 0:00:06]} 49. Ke3 {[%clk 0:00:09]}  Rh4 {[%clk 0:00:04]} 50. Be6 {[%clk 0:00:09]}  Rd8 {[%clk 0:00:05]} 51. d7 {[%clk 0:00:09]}  f5 {[%clk 0:00:05]} 52. Rd5 {[%clk 0:00:09]}  Kf6 {[%clk 0:00:05]} 53. Rxe5 {[%clk 0:00:05]}  Kxe5 {[%clk 0:00:05]} 54. Bf7 {[%clk 0:00:05]}  Rxd7 {[%clk 0:00:04]} 55. Bxg6 {[%clk 0:00:05]}  Rh3+ {[%clk 0:00:05]} 56. Ke2 {[%clk 0:00:05]}  Rg7 {[%clk 0:00:05]} 0-1


[Site "https://www.chess.com"]